bitfinex/quotes_ETHUSD_20250130
["timestamp","ask_amount","ask_price","bid_price","bid_amount"]
[1738230365492,6.65491,3220.7,3220.5,0.12774509]
[1738230365692,6.87771,3220.6,3220.5,0.22774509]
[1738230365851,7.42666522,3220.6,3220.5,0.22774509]
[1738230366557,7.42666522,3220.6,3220.5,0.12774509]
[1738230367257,7.42666522,3220.6,3220.5,0.22774509]
[1738230367987,7.42666522,3220.6,3220.5,0.12774509]
[1738230368199,7.42666522,3220.6,3220.5,0.22774509]
[1738230368548,7.42666522,3220.6,3220.5,0.1]
[1738230368750,3.10578,3219.8,3219.7,0.1]
[1738230368985,3.65597,3219.6,3219.5,0.12774509]
[1738230369186,3.65616,3219.4,3219.3,0.6903018]
[1738230371289,3.65616,3219.4,3219.3,0.22774509]
[1738230372270,3.65616,3219.4,3219.3,0.27758361]
[1738230372460,4.20511522,3219.4,3219.3,0.14983852]
[1738230372662,7.20511522,3219.4,3219.3,0.22774509]
[1738230372985,7.20511522,3219.4,3219.3,0.1]
[1738230373161,7.20511522,3219.4,3219.3,0.22774509]
[1738230373363,7.20511522,3219.4,3219.3,0.1]
[1738230373559,3.65636,3219.2,3219.0,0.12774509]
[1738230373875,3.8142,3219.3,3218.7,0.12774509]
[1738230373876,3.65674,3218.8,3218.7,0.12774509]
[1738230374287,7.47094,3218.8,3218.6,0.1]
[1738230374490,3.10703,3218.5,3218.4,0.1]
[1738230374691,6.10703,3218.5,3218.4,0.1]
[1738230375063,6.65703,3218.5,3218.4,0.1]
[1738230375288,6.65723,3218.3,3218.2,0.37814509]
[1738230375477,7.46563,3218.3,3218.2,0.37814509]
[1738230375884,7.46563,3218.3,3218.2,0.2504]
[1738230377975,7.46563,3218.3,3218.2,0.37814509]
[1738230378703,6.65723,3218.3,3218.2,0.37814509]
[1738230378869,7.37058146,3218.3,3218.2,0.37814509]
[1738230379697,7.37058146,3218.3,3218.2,0.2504]
[1738230379906,7.37058146,3218.3,3218.2,0.37814509]
[1738230380406,3.55,3218.3,3218.2,0.47814509]
[1738230380578,3.55,3218.3,3218.2,0.52742858]
[1738230380776,3.55,3218.3,3218.2,0.2504]
[1738230380777,6.66473,3218.3,3218.2,0.2504]
[1738230381106,6.67223,3218.3,3218.2,0.2504]
[1738230386009,7.46043,3218.3,3218.2,0.2504]
[1738230388228,7.66543,3218.3,3218.2,0.2504]
[1738230389525,7.66543,3218.3,3218.2,0.3504]
[1738230389526,6.10723,3218.3,3218.2,0.3504]
[1738230390114,6.10723,3218.3,3218.2,0.2504]
[1738230390422,6.67223,3218.3,3218.2,0.2504]
[1738230390789,7.48933,3218.3,3218.2,0.2504]
[1738230393916,3.11569,3217.3,3217.2,0.37214291]
[1738230394114,6.66569,3217.3,3217.2,0.37214291]
[1738230398347,6.67319,3217.3,3217.2,0.37214291]
[1738230398646,6.65867,3216.9,3216.8,0.22774509]
[1738230400438,6.65867,3216.9,3216.8,0.1]
[1738230402021,6.65867,3216.9,3216.8,0.22774509]
[1738230402223,6.65867,3216.9,3216.8,0.1]
[1738230402843,6.65877,3216.8,3216.7,0.1]
[1738230403046,6.65887,3216.6,3216.5,0.12774509]
[1738230403248,6.65887,3216.6,3216.5,0.22774509]
[1738230403454,6.65887,3216.6,3216.5,0.12774509]
[1738230403745,6.65887,3216.6,3216.5,0.22774509]
[1738230403948,7.280479,3216.6,3216.5,0.22774509]
[1738230404149,6.65887,3216.6,3216.5,0.22774509]
[1738230404725,6.65887,3216.6,3216.5,0.27683628]
[1738230405653,6.65887,3216.6,3216.5,0.22774509]
[1738230407652,6.15887,3216.6,3216.5,0.22774509]
[1738230408518,3.15887,3216.6,3216.5,0.22774509]
[1738230408812,3.15887,3216.6,3216.5,0.27683628]
[1738230409467,3.15887,3216.6,3216.5,0.22774509]
[1738230409747,3.15887,3216.6,3216.5,0.1]
[1738230410353,3.84664114,3216.6,3216.5,0.1]
[1738230410512,3.29664114,3216.6,3216.5,0.1]
[1738230410717,2.60887,3216.6,3216.5,0.22774509]
[1738230410946,3.15887,3216.6,3216.5,0.22774509]
[1738230412116,0.55,3216.6,3216.5,0.22774509]
[1738230412451,3.65887,3216.6,3216.5,1.05311252]
[1738230413019,0.55,3216.6,3216.5,1.05311252]
[1738230414430,3.10882,3216.7,3216.6,1.95]
[1738230414632,3.0,3217.0,3216.8,0.22774509]
[1738230414961,3.10838,3217.1,3217.0,1.03234509]
[1738230415325,3.10838,3217.1,3217.0,1.08166138]
[1738230415527,3.10838,3217.1,3217.0,0.27706138]
[1738230416625,3.65838,3217.1,3217.0,0.27706138]
[1738230417038,3.65838,3217.1,3217.0,0.22774509]
[1738230417569,3.10838,3217.1,3217.0,0.22774509]
[1738230417865,3.10838,3217.1,3217.0,0.27706138]
[1738230418366,3.65838,3217.1,3217.0,0.27706138]
[1738230418542,6.65838,3217.1,3217.0,0.27706138]
[1738230418743,6.66588,3217.1,3217.0,0.1]
[1738230419830,6.66588,3217.1,3217.0,0.22774509]
[1738230419831,7.48658,3217.1,3217.0,0.22774509]
[1738230420259,6.66588,3217.1,3217.0,0.22774509]
[1738230420773,6.65838,3217.1,3217.0,0.22774509]
[1738230420975,6.65838,3217.1,3217.0,0.27691512]
[1738230421265,3.10838,3217.1,3217.0,1.09041512]
[1738230421471,1.15838,3217.1,3217.0,1.09041512]
[1738230421634,3.0,3217.2,3217.0,1.09041512]
[1738230423345,3.10838,3217.1,3217.0,1.09041512]
[1738230423890,3.65838,3217.1,3217.0,0.27691512]
[1738230424371,3.66588,3217.1,3217.0,0.1]
[1738230425655,3.65867,3216.8,3216.7,0.22774509]
[1738230427059,3.65867,3216.8,3216.7,0.27710556]
[1738230428060,3.65867,3216.8,3216.7,0.22774509]
[1738230428874,3.65867,3216.8,3216.7,0.27710556]
[1738230429178,3.10825,3217.3,3217.2,0.1]
[1738230429474,6.10825,3217.3,3217.2,0.1]
[1738230429775,6.10825,3217.3,3217.2,0.14930434]
[1738230430540,3.10784,3217.7,3217.2,0.97950434]
[1738230430757,0.372143,3217.8,3217.7,0.95794509]
[1738230430758,3.10773,3217.8,3217.7,0.95794509]
[1738230430952,3.10771,3217.8,3217.7,0.95794509]
[1738230431193,3.10771,3217.8,3217.7,0.2770008]
[1738230431374,3.10771,3217.8,3217.7,0.22774509]
[1738230431546,6.10771,3217.8,3217.7,0.2770008]
[1738230432268,3.0,3217.8,3217.7,0.2770008]
[1738230432774,3.10746,3218.1,3218.0,0.1]
[1738230433166,3.10746,3218.1,3218.0,0.14904282]
[1738230433572,6.10746,3218.1,3218.0,0.14904282]
[1738230433761,6.10746,3218.1,3218.0,0.1]
[1738230434154,6.10746,3218.1,3218.0,0.14904282]
[1738230434976,6.65746,3218.1,3218.0,0.14904282]
[1738230435358,6.65746,3218.1,3218.0,0.1]
[1738230437302,6.10746,3218.1,3218.0,0.1]
[1738230437638,6.10746,3218.1,3218.0,0.14892287]
[1738230438079,3.0,3218.1,3218.0,0.90762287]
[1738230439382,0.127745,3218.7,3218.6,0.22774509]
[1738230439544,3.10645,3219.2,3219.1,0.1]
[1738230439956,3.10645,3219.2,3219.1,0.14879724]
[1738230440408,6.10645,3219.2,3219.1,0.04879724]
[1738230440703,6.10645,3219.1,3219.0,0.22774509]
[1738230441206,3.65655,3219.0,3218.9,0.1]
[1738230441356,7.45965,3218.9,3218.7,0.1]
[1738230441556,6.67174,3218.8,3218.7,0.1]
[1738230442522,6.67174,3218.8,3218.5,0.1]
[1738230442523,3.10694,3218.6,3218.5,0.1]
[1738230442651,3.65742,3218.1,3218.0,0.1]
[1738230442855,6.65742,3218.1,3218.0,0.1]
[1738230443097,6.65742,3218.1,3218.0,0.22774509]
[1738230443392,7.00586485,3218.1,3218.0,0.22774509]
[1738230443957,7.00586485,3218.1,3218.0,0.1]
[1738230444258,7.00586485,3218.1,3218.0,0.22774509]
[1738230446657,7.00586485,3218.1,3218.0,0.27383666]
[1738230447094,7.00586485,3218.1,3218.0,0.22774509]
[1738230447269,7.00586485,3218.1,3218.0,0.27383666]
[1738230447860,6.10742,3218.1,3218.0,0.27383666]
[1738230448080,6.10742,3218.1,3218.0,0.22774509]
[1738230448287,6.10742,3218.1,3218.0,0.27383666]
[1738230448459,6.65742,3218.1,3218.0,0.27383666]
[1738230448656,0.55,3218.0,3217.8,0.12774509]
[1738230448862,6.65761,3217.9,3217.8,0.12774509]
[1738230449368,3.1078,3217.7,3217.6,0.22774509]
[1738230449573,3.1078,3217.7,3217.6,0.1]
[1738230449969,3.6728,3217.7,3217.4,0.22774509]
[1738230450172,6.108,3217.5,3217.4,0.22774509]
[1738230451912,6.6655,3217.5,3217.4,0.22774509]
[1738230453519,3.67348,3217.0,3216.9,0.12774509]
[1738230453666,7.42728,3217.0,3216.9,0.12774509]
[1738230454017,7.42728,3217.0,3216.8,0.12774509]
[1738230454018,6.67358,3216.9,3216.8,0.12774509]
[1738230454228,7.339322,3216.9,3216.8,0.12774509]
[1738230454801,6.67367,3216.8,3216.7,0.1]
[1738230454996,3.12387,3216.6,3216.5,0.1]
[1738230455210,6.67406,3216.4,3216.3,0.1]
[1738230455414,6.65935,3216.1,3216.0,0.1]
[1738230455777,6.65935,3216.1,3216.0,0.14078859]
[1738230455982,6.66685,3216.1,3216.0,0.1]
[1738230456177,7.27091468,3216.1,3216.0,0.1]
[1738230456404,7.27091468,3216.1,3216.0,0.22774509]
[1738230457002,6.66685,3216.1,3216.0,0.22774509]
[1738230457211,3.55,3216.1,3216.0,0.22774509]
[1738230457413,3.0,3216.1,3216.0,1.06253368]
[1738230468340,3.0,3216.1,3216.0,1.06253368]
[1738230472047,3.10893,3216.6,3216.5,0.12774509]
[1738230472211,3.1087,3216.8,3216.7,0.22774509]
[1738230472415,3.87519,3217.2,3217.1,0.22774509]
[1738230472611,8.2555144,3217.2,3217.1,0.12774509]
[1738230472823,7.7130144,3217.2,3217.1,0.04111988]
[1738230473039,6.65848,3217.0,3216.9,0.1]
[1738230475553,6.10858,3216.9,3216.8,0.12774509]
[1738230477512,3.10867,3216.8,3216.7,0.1]
[1738230477742,3.54815228,3216.8,3216.7,0.1]
[1738230478427,6.54815228,3216.8,3216.7,0.141346]
[1738230478832,6.54815228,3216.8,3216.7,0.1]
[1738230480858,6.54815228,3216.8,3216.7,0.14135349]
[1738230483476,6.10867,3216.8,3216.7,0.14135349]
[1738230484040,3.0,3216.8,3216.7,0.14135349]
[1738230484234,3.10841,3217.1,3216.7,0.14135349]
[1738230484458,0.55,3217.0,3216.9,0.12774509]
[1738230484877,0.55,3217.0,3216.9,0.16906415]
[1738230484878,3.55,3217.0,3216.9,0.16906415]
[1738230485034,6.65848,3217.0,3216.9,0.26906415]
[1738230485235,3.55,3217.0,3216.9,0.26906415]
[1738230486578,6.65848,3217.0,3216.9,0.26906415]
[1738230487141,3.0,3217.0,3216.9,0.26906415]
[1738230488677,6.65848,3217.0,3216.9,0.26906415]
[1738230488900,6.65848,3217.0,3216.9,0.22774509]
[1738230489491,6.65848,3217.0,3216.9,0.26871955]
[1738230489866,6.65848,3217.0,3216.9,0.22774509]
[1738230490469,6.65848,3217.0,3216.9,0.26871955]
[1738230490902,6.65848,3217.0,3216.9,0.22774509]
[1738230491403,6.65848,3217.0,3216.9,0.26871955]
[1738230492890,3.55,3217.0,3216.9,0.26871955]
[1738230493094,3.0,3217.0,3216.9,0.26871955]
[1738230493677,6.10829,3217.2,3217.1,0.22774509]
[1738230493985,6.10829,3217.2,3217.1,0.2687076]
[1738230496396,6.67329,3217.2,3217.1,0.2687076]
[1738230496796,7.42609,3217.2,3217.1,0.22774509]
[1738230497211,6.10877,3216.7,3216.6,0.12774509]
[1738230497411,3.10916,3216.4,3216.0,0.769]
[1738230497720,3.0,3216.3,3216.2,0.12774509]
[1738230497890,3.0,3216.3,3216.2,0.16876139]
[1738230498711,6.65916,3216.3,3216.2,0.0410163]
[1738230498895,6.65916,3216.3,3216.2,0.12774509]
[1738230499118,6.65916,3216.3,3216.2,0.16892996]
[1738230499694,6.65916,3216.3,3216.2,0.12774509]
[1738230500095,6.65916,3216.3,3216.2,0.16892996]
[1738230500714,7.29068784,3216.3,3216.2,0.16892996]
[1738230503227,7.29068784,3216.3,3216.2,0.04118487]
[1738230503228,7.30568784,3216.3,3216.2,0.04118487]
[1738230503401,6.11675,3216.2,3216.1,0.12774509]
[1738230504822,6.66675,3216.2,3216.1,0.12774509]
[1738230513871,6.66675,3216.2,3215.9,0.12774509]
[1738230513872,0.5575,3216.0,3215.9,0.12774509]
[1738230514157,3.66695,3216.0,3215.9,0.12774509]
[1738230514327,3.65945,3216.0,3215.9,0.12774509]
[1738230520555,3.10945,3216.0,3215.9,0.94744509]
[1738230521075,3.10945,3216.0,3215.9,0.98916486]
[1738230522167,3.65945,3216.0,3215.9,0.16946486]
[1738230522641,3.65945,3216.0,3215.9,0.12774509]
[1738230523181,6.65945,3216.0,3215.9,0.12774509]
[1738230523359,3.65954,3215.9,3215.8,0.37230492]
[1738230527487,3.10954,3215.9,3215.8,0.37230492]
[1738230527647,3.0,3216.0,3215.8,0.37230492]
[1738230527851,3.10931,3216.2,3216.1,0.12774509]
[1738230528245,6.10931,3216.2,3216.1,0.16807415]
[1738230538811,3.0,3216.2,3216.1,0.93547415]
[1738230540094,3.7343362,3216.6,3216.1,0.93547415]
[1738230540095,3.10892,3216.6,3216.5,0.12774509]
[1738230540460,6.10892,3216.6,3216.5,0.16798281]
[1738230540699,3.0,3216.6,3216.5,0.97108281]
[1738230542487,3.0,3216.6,3216.5,4.08004281]
[1738230542687,3.10828,3217.3,3217.2,0.12774509]
[1738230543200,3.62673664,3217.3,3217.2,0.16767496]
[1738230543383,3.10809,3217.5,3217.2,0.16767496]
[1738230543591,3.10809,3217.5,3217.4,0.12774509]
[1738230543979,3.10809,3217.5,3217.4,0.16757312]
[1738230544565,6.10809,3217.5,3217.4,0.16757312]
[1738230544768,7.579685,3217.5,3217.4,0.16757312]
[1738230545069,8.338985,3217.5,3217.4,0.12774509]
[1738230545976,8.346485,3217.5,3217.4,0.12774509]
[1738230547129,3.565,3217.4,3217.1,0.12774509]
[1738230547426,6.10829,3217.2,3217.1,0.12774509]
[1738230547586,7.17940168,3217.2,3217.1,0.12774509]
[1738230550127,7.73690168,3217.2,3217.1,0.12774509]
[1738230550426,3.5575,3217.1,3216.9,0.12774509]
[1738230550639,6.10848,3217.0,3216.9,0.12774509]
[1738230551293,6.10848,3217.0,3216.3,0.7719]
[1738230551294,6.65867,3216.8,3216.7,0.12774509]
[1738230551610,7.580265,3216.8,3216.7,0.12774509]
[1738230553846,7.580265,3216.8,3216.7,0.16735648]
[1738230558536,7.580265,3216.8,3216.7,0.12774509]
[1738230558845,7.580265,3216.8,3216.7,0.16735648]
[1738230559046,3.0,3216.8,3216.7,0.16735648]
[1738230559347,3.0,3216.8,3216.7,0.88194509]
[1738230559506,3.0,3216.8,3216.7,3.99071509]
[1738230559709,3.0,3216.8,3216.7,4.03043135]
[1738230560544,3.10794,3217.6,3217.5,0.12774509]
[1738230560835,3.10794,3217.6,3217.5,0.16741355]
[1738230561039,6.73893197,3217.6,3217.5,0.16741355]
[1738230566141,6.73893197,3217.6,3217.5,0.12774509]
[1738230566343,7.28893197,3217.6,3217.5,0.16723381]
[1738230566493,7.28893197,3217.6,3217.5,0.12774509]
[1738230569444,7.28893197,3217.6,3217.5,0.16723381]
[1738230569998,7.28893197,3217.6,3217.5,0.12774509]
[1738230572322,7.28893197,3217.6,3217.5,0.16705404]
[1738230573562,7.28893197,3217.6,3217.5,0.12774509]
[1738230575331,7.28893197,3217.6,3217.5,0.16705404]
[1738230577257,7.28893197,3217.6,3217.5,0.12774509]
[1738230577551,7.29643197,3217.6,3217.5,0.12774509]
[1738230577753,0.0075,3217.4,3216.7,0.8333]
[1738230577954,0.0075,3217.4,3217.1,0.12774509]
[1738230577955,4.45959,3217.2,3217.1,0.12774509]
[1738230578155,7.45959,3217.2,3217.1,0.12774509]
[1738230580128,0.5575,3217.0,3216.9,0.12774509]
[1738230580343,6.66598,3217.0,3216.9,0.12774509]
[1738230584854,7.2739773,3217.0,3216.9,0.12774509]
[1738230591301,7.2739773,3217.0,3215.9,3.10953]
[1738230591302,3.10877,3216.7,3216.6,0.12774509]
[1738230591551,6.65877,3216.7,3216.6,0.12774509]
[1738230592006,6.65877,3216.7,3216.6,0.16757971]
[1738230592596,6.10877,3216.7,3216.6,0.16757971]
[1738230592907,3.0,3216.7,3216.6,0.16757971]
[1738230593199,3.0,3216.7,3216.6,0.95507971]
[1738230599304,3.10761,3217.9,3217.7,0.12774509]
[1738230599462,4.10421451,3217.8,3217.7,0.12774509]
[1738230600178,4.65421451,3217.8,3217.7,0.12774509]
[1738230600388,7.65421451,3217.8,3217.7,0.12774509]
[1738230600588,7.66921451,3217.8,3217.7,0.12774509]
[1738230600898,6.6655,3217.5,3217.4,0.12774509]
[1738230601097,7.53810568,3217.5,3217.4,0.12774509]
[1738230601302,7.53060568,3217.5,3217.4,0.12774509]
[1738230601804,7.54560568,3217.5,3217.4,0.12774509]
[1738230602101,3.65819,3217.3,3217.2,0.12774509]
[1738230604108,6.65819,3217.3,3217.2,0.12774509]
[1738230604303,7.055391,3217.3,3217.2,0.12774509]
[1738230605920,7.6637501,3217.3,3217.2,0.12774509]
[1738230606783,7.2665491,3217.3,3217.2,0.12774509]
[1738230606984,6.10819,3217.3,3217.2,0.12774509]
[1738230607193,6.10819,3217.3,3217.2,0.16736408]
[1738230607918,3.0,3217.3,3217.2,0.16736408]
[1738230608227,3.0,3217.3,3217.2,4.02855408]
[1738230608425,3.10785,3217.7,3217.6,0.12774509]
[1738230608905,3.65764,3217.9,3217.8,0.12774509]
[1738230609422,3.10764,3217.9,3217.8,0.167302]
[1738230609627,6.10764,3217.9,3217.8,0.167302]
[1738230609984,6.65764,3217.9,3217.8,0.12774509]
[1738230610315,3.0,3217.9,3217.8,0.12774509]
[1738230610827,3.0,3217.9,3217.8,0.92829979]
[1738230613126,3.0,3217.9,3217.8,1.33190477]
[1738230613434,0.2496,3218.1,3218.0,4.06466509]
[1738230613791,0.2496,3218.1,3218.0,4.10312842]
[1738230614321,0.2496,3218.1,3218.0,4.13419924]
[1738230619917,0.2496,3218.1,3218.0,4.10312842]
[1738230620122,0.2496,3218.1,3218.0,4.86455476]
[1738230620728,0.2496,3218.1,3218.0,1.75703476]
[1738230620924,0.2496,3218.1,3218.0,0.99560842]
[1738230621598,0.2496,3218.1,3218.0,0.16620842]
[1738230628024,0.2496,3218.1,3218.0,3.27372842]
[1738230628249,0.2496,3218.1,3218.0,4.0671028]
[1738230631243,1e-05,3218.1,3218.0,4.1746028]
[1738230631458,1e-05,3218.1,3218.0,22.40746594]
[1738230631754,1e-05,3218.1,3218.0,22.37639156]
[1738230632255,1e-05,3218.1,3218.0,26.20989156]
[1738230632986,1e-05,3218.1,3218.0,29.80103402]
[1738230633459,1e-05,3218.1,3218.0,30.03038377]
[1738230634839,1e-05,3218.1,3218.0,30.34158377]
[1738230636504,1e-05,3218.1,3218.0,27.06558377]
[1738230636709,1e-05,3218.1,3218.0,26.95738377]
[1738230637642,1e-05,3218.1,3218.0,27.26858377]
[1738230637968,0.7905,3220.1,3219.9,3.23342509]
[1738230638309,3.1052,3220.4,3220.0,0.03663419]
[1738230638670,0.7583,3220.6,3220.5,0.12774509]
[1738230638970,0.7583,3220.9,3220.8,0.12774509]
[1738230639312,0.8069,3221.7,3221.1,0.12774509]
[1738230639540,0.8069,3221.7,3221.6,0.12774509]
[1738230639793,1.42230565,3222.2,3222.0,0.12774509]
[1738230640101,0.7769,3222.3,3222.2,3.23120509]
[1738230640394,0.7769,3222.3,3222.2,0.12774509]
[1738230640547,0.8069,3222.5,3222.2,0.16376232]
[1738230640743,0.8069,3222.5,3222.4,0.12774509]
[1738230640939,6.91008,3222.5,3222.4,0.12774509]
[1738230641202,6.91008,3222.5,3221.3,8.81]
[1738230641203,3.65337,3222.3,3222.2,0.12774509]
[1738230641359,7.46707,3222.3,3222.2,0.12774509]
[1738230641562,7.47457,3222.3,3222.2,0.12774509]
[1738230641762,0.55,3222.0,3221.9,0.12774509]
[1738230642076,0.55,3222.0,3220.5,5.82220838]
[1738230642077,6.65395,3221.7,3221.6,0.12774509]
[1738230655600,6.65395,3221.7,3221.6,0.16137331]
[1738230656603,3.0,3221.7,3221.6,0.16137331]
[1738230656914,3.0,3221.7,3221.6,0.12774509]
[1738230657255,3.10357,3222.1,3222.0,0.12774509]
[1738230657571,3.10357,3222.1,3222.0,0.16136815]
[1738230657899,0.7687,3222.2,3222.0,0.16136815]
[1738230658065,1.242818,3222.4,3222.3,0.12774509]
[1738230658271,3.10322,3222.5,3222.3,0.12774509]
[1738230658450,3.10322,3222.5,3222.3,0.16135028]
[1738230658652,6.10327,3222.4,3222.3,0.16135028]
[1738230659098,6.10327,3222.4,3222.3,0.12774509]
[1738230659405,3.0,3222.4,3222.3,0.16135028]
[1738230659603,3.10302,3222.7,3222.6,0.12774509]
[1738230659970,6.88644,3222.9,3222.8,0.12774509]
[1738230660175,3.86498,3222.7,3222.6,0.1611868]
[1738230660470,3.10318,3222.5,3222.4,0.12774509]
[1738230660673,3.65318,3222.5,3222.4,0.12774509]
[1738230660892,3.66068,3222.5,3222.4,0.12774509]
[1738230661201,4.44048,3222.5,3222.4,0.12774509]
[1738230661602,7.44048,3222.5,3222.4,0.12774509]
[1738230661914,6.10318,3222.5,3222.4,0.12774509]
[1738230662431,6.65318,3222.5,3222.4,0.12774509]
[1738230662632,6.66068,3222.5,3222.4,0.12774509]
[1738230662797,7.48198,3222.5,3222.4,0.12774509]
[1738230663383,10.58525,3222.5,3222.4,0.12774509]
[1738230663739,11.2049697,3222.5,3222.4,0.12774509]
[1738230664033,6.65327,3222.4,3222.3,0.12774509]
[1738230664631,6.66077,3222.4,3222.3,0.12774509]
[1738230664926,7.47907,3222.4,3222.3,0.12774509]
[1738230665426,7.47907,3222.4,3221.3,0.7918]
[1738230665427,0.015,3222.3,3222.1,0.12774509]
[1738230665614,3.11096,3222.2,3222.1,0.12774509]
[1738230667099,3.10346,3222.2,3222.1,0.12774509]
[1738230667523,3.65346,3222.2,3222.1,0.15754795]
[1738230667725,3.10346,3222.2,3222.1,0.15754795]
[1738230670396,3.65346,3222.2,3222.1,0.15754795]
[1738230670633,3.65346,3222.2,3222.1,0.12774509]
[1738230672658,3.65346,3222.2,3222.1,0.15763374]
[1738230673357,3.10346,3222.2,3222.1,0.15763374]
[1738230673776,3.65346,3222.2,3222.1,0.15763374]
[1738230673917,3.65346,3222.2,3222.1,0.12774509]
[1738230676216,3.10346,3222.2,3222.1,0.12774509]
[1738230676631,3.10346,3222.2,3222.1,0.15761882]
[1738230676836,3.65346,3222.2,3222.1,0.15761882]
[1738230677161,3.65346,3222.2,3222.1,0.12774509]
[1738230678917,3.0,3222.2,3222.1,0.88204509]
[1738230679117,3.0,3222.2,3222.1,0.91092801]
[1738230679359,6.10346,3222.2,3222.1,0.15662801]
[1738230680950,3.0,3222.2,3222.1,0.15662801]
[1738230682369,6.10346,3222.2,3222.1,0.15662801]
[1738230683166,3.0,3222.2,3222.1,0.15662801]
[1738230683475,3.0,3222.2,3222.1,0.48266281]
[1738230684138,3.10308,3222.6,3222.5,0.12774509]
[1738230684540,3.10308,3222.6,3222.5,0.15648855]
[1738230684938,3.10286,3222.9,3222.8,0.12774509]
[1738230685426,3.10286,3222.9,3222.8,0.15647069]
[1738230685628,6.10286,3222.9,3222.8,0.15647069]
[1738230685937,6.10279,3222.9,3222.8,0.12774509]
[1738230686541,6.10279,3222.9,3222.8,0.15647069]
[1738230686937,3.0,3222.9,3222.8,0.15647069]
[1738230687744,6.10279,3222.9,3222.8,0.15647069]
[1738230691575,3.10279,3222.9,3222.8,0.15647069]
[1738230691996,1.242489,3223.3,3223.2,0.12774509]
[1738230692169,0.01,3223.4,3223.2,0.12774509]
[1738230692170,3.11234,3223.4,3223.2,0.12774509]
[1738230692479,3.0,3223.3,3223.2,0.12774509]
[1738230692775,6.10241,3223.3,3223.2,0.12774509]
[1738230693282,3.0,3223.3,3223.2,0.12774509]
[1738230693447,3.01,3223.4,3223.2,0.12774509]
[1738230694169,3.01,3223.4,3223.2,0.5306129]
[1738230694373,3.01,3223.4,3223.2,0.12774509]
[1738230695144,6.11236,3223.4,3223.2,0.12774509]
[1738230695378,3.10241,3223.3,3223.2,0.12774509]
[1738230696590,6.11236,3223.4,3223.2,0.12774509]
[1738230697167,3.10241,3223.3,3223.2,0.12774509]
[1738230697588,0.01,3223.4,3223.2,0.12774509]
[1738230697757,3.11232,3223.4,3223.2,0.12774509]
[1738230697955,0.01,3223.4,3223.3,0.02764604]
[1738230698274,0.01,3223.4,3223.3,4.28192819]
[1738230698466,0.01,3223.4,3223.3,4.30957423]
[1738230698674,0.01,3223.4,3223.3,4.27855215]
[1738230698987,0.01,3223.4,3223.3,4.30956926]
[1738230699186,3.10075,3225.1,3223.3,4.30956926]
[1738230699187,3.10115,3224.7,3224.1,3.22938509]
[1738230699388,0.005,3224.9,3224.8,4.05140509]
[1738230699555,0.005,3224.9,3224.8,7.02529973]
[1738230699760,0.005,3224.9,3224.8,7.03948136]
[1738230700111,0.1669665,3225.8,3225.7,3.93064509]
[1738230700408,0.1669665,3225.8,3225.7,0.87563858]
[1738230700567,0.1669665,3225.8,3225.7,3.97573858]
[1738230700775,0.1669665,3225.8,3225.7,0.87563858]
[1738230701475,0.1669665,3225.8,3225.7,3.97573858]
[1738230702074,0.1669665,3225.8,3225.7,3.93064509]
[1738230702289,0.1669665,3225.8,3225.7,4.6437286]
[1738230702690,0.1669665,3225.8,3225.7,0.83054509]
[1738230703073,0.1669665,3225.8,3225.7,0.12774509]
[1738230703602,3.2669665,3225.8,3225.7,0.12774509]
[1738230703803,0.1669665,3225.8,3225.7,0.12774509]
[1738230704586,0.1669665,3225.8,3225.7,3.22784509]
[1738230704929,0.1669665,3225.8,3225.7,3.5506296]
[1738230705064,0.1669665,3225.8,3225.7,0.48152474]
[1738230705389,0.1669665,3225.8,3225.7,3.25884023]
[1738230705706,0.1669665,3225.8,3225.7,3.54142785]
[1738230706087,0.1669665,3225.8,3225.7,0.41033271]
[1738230707403,0.1669665,3225.8,3225.7,0.12774509]
[1738230707608,3.2669665,3225.8,3225.7,0.12774509]
[1738230707775,0.1669665,3225.8,3225.7,0.12774509]
[1738230709704,0.1669665,3225.8,3225.7,0.12774509]
[1738230710824,3.2669665,3225.8,3225.7,0.12774509]
[1738230711026,0.1669665,3225.8,3225.7,0.12774509]
[1738230712102,0.1669665,3225.8,3225.7,0.41015536]
[1738230713231,3.2669665,3225.8,3225.7,0.41015536]
[1738230713380,3.90365515,3225.8,3225.7,0.41015536]
[1738230713574,6.90365515,3225.8,3225.7,0.41015536]
[1738230713779,6.90365515,3225.8,3225.7,0.12774509]
[1738230714231,6.2669665,3225.8,3225.7,0.12774509]
[1738230714591,3.1669665,3225.8,3225.7,0.12774509]
[1738230717028,6.2669665,3225.8,3225.7,0.41084605]
[1738230717340,7.5769665,3225.8,3225.7,0.41084605]
[1738230718748,7.5769665,3225.8,3225.7,0.12774509]
[1738230718948,3.10019,3225.6,3225.5,0.12774509]
[1738230719108,3.1008,3225.0,3224.6,0.822]
[1738230719454,7.0270465,3225.8,3225.7,0.12774509]
[1738230719948,0.1669665,3225.8,3225.7,0.12774509]
[1738230721748,3.2669665,3225.8,3225.7,0.12774509]
[1738230722109,6.2669665,3225.8,3225.7,0.12774509]
[1738230724025,6.2669665,3225.8,3225.1,0.03100028]
[1738230724233,6.2669665,3225.8,3225.1,0.36064833]
[1738230724453,3.1002,3225.6,3225.0,3.10073]
[1738230725005,3.1004,3225.4,3224.8,3.10095]
[1738230725210,3.1004,3225.4,3224.8,6.20186]
[1738230725452,3.1004,3225.4,3224.9,3.10086]
[1738230726452,3.1004,3225.4,3224.8,3.10091]
[1738230726657,3.10077,3225.1,3224.6,0.47475301]
[1738230726953,3.10081,3225.0,3224.6,0.47475301]
[1738230727122,3.10068,3225.1,3224.6,0.47475301]
[1738230727322,3.10056,3225.3,3224.6,0.47475301]
[1738230727549,6.20144,3225.1,3224.6,0.47475301]
[1738230727752,3.10068,3225.1,3224.6,0.47475301]
[1738230727957,3.10081,3225.0,3224.6,0.47475301]
[1738230728263,3.10068,3225.1,3224.6,0.47475301]
[1738230728427,3.10068,3225.1,3224.7,0.22848661]
[1738230728759,3.10049,3225.3,3224.7,3.36055444]
[1738230729057,3.10049,3225.3,3224.9,0.47475301]
[1738230729210,3.0,3225.4,3224.9,0.5057592]
[1738230729754,3.1005,3225.3,3224.9,0.5057592]